[Event "Live Chess"]
[Site "Chess.com"]
[Date "2023.05.21"]
[Round "-"]
[White "PantherCal"]
[Black "FierceFighter2000"]
[Result "0-1"]
[WhiteElo "1849"]
[BlackElo "2045"]
[TimeControl "300"]
[EndTime "8:15:53 PDT"]
[Termination "FierceFighter2000 won by resignation"]

1. e4 {[%clk 0:04:59.5]} 1... c6 {[%clk 0:04:59.2]} 2. d4 {[%clk 0:04:58.3]}
2... d5 {[%clk 0:04:58.5]} 3. e5 {[%clk 0:04:58.1]} 3... c5 {[%clk 0:04:57.7]}
4. dxc5 {[%clk 0:04:57.4]} 4... e6 {[%clk 0:04:57.2]} 5. Nf3 {[%clk 0:04:57.1]}
5... Nd7 {[%clk 0:04:45.8]} 6. a3 {[%clk 0:04:57]} 6... Bxc5 {[%clk 0:04:44.1]}
7. b4 {[%clk 0:04:56]} 7... Bb6 {[%clk 0:04:42.2]} 8. Bd3 {[%clk 0:04:54.2]}
8... Ne7 {[%clk 0:04:40]} 9. O-O {[%clk 0:04:51.1]} 9... Ng6 {[%clk 0:04:39.2]}
10. Re1 {[%clk 0:04:50.6]} 10... O-O {[%clk 0:04:38]} 11. Nbd2 {[%clk
0:04:47.1]} 11... a5 {[%clk 0:04:17.3]} 12. Bb2 {[%clk 0:04:44.8]} 12... Qe7
{[%clk 0:04:08]} 13. b5 {[%clk 0:04:40.8]} 13... Nc5 {[%clk 0:04:06.8]} 14. Bf1
{[%clk 0:04:35.3]} 14... Bd7 {[%clk 0:04:05.8]} 15. a4 {[%clk 0:04:32.9]} 15...
Rac8 {[%clk 0:03:45.4]} 16. Rc1 {[%clk 0:04:28.7]} 16... Nxa4 {[%clk 0:03:34.1]}
17. c4 {[%clk 0:04:27.8]} 17... Nxb2 {[%clk 0:03:32.9]} 0-1

[Event "Live Chess"]
[Site "Chess.com"]
[Date "2023.05.21"]
[Round "-"]
[White "WelshTiger"]
[Black "BJAW87"]
[Result "1-0"]
[WhiteElo "2335"]
[BlackElo "1443"]
[TimeControl "300"]
[EndTime "8:15:56 PDT"]
[Termination "WelshTiger won by resignation"]

1. e4 {[%clk 0:04:58.6]} 1... c6 {[%clk 0:04:58.7]} 2. d4 {[%clk 0:04:57.5]}
2... d5 {[%clk 0:04:57.9]} 3. f3 {[%clk 0:04:57.2]} 3... Nd7 {[%clk 0:04:51.2]}
4. Nc3 {[%clk 0:04:46.5]} 4... e5 {[%clk 0:04:48.9]} 5. exd5 {[%clk 0:04:44.7]}
5... exd4 {[%clk 0:04:46.9]} 6. Qxd4 {[%clk 0:04:40.8]} 6... cxd5 {[%clk
0:04:39.9]} 7. Nxd5 {[%clk 0:04:26.8]} 7... Bc5 {[%clk 0:04:26]} 8. Qe4+ {[%clk
0:04:25.7]} 8... Be7 {[%clk 0:04:11.4]} 9. Be3 {[%clk 0:04:18]} 9... Qa5+ {[%clk
0:04:05.7]} 10. c3 {[%clk 0:04:12.8]} 10... Qd8 {[%clk 0:03:38]} 11. O-O-O
{[%clk 0:04:08.5]} 11... Ngf6 {[%clk 0:03:37.5]} 12. Nxf6+ {[%clk 0:04:06.6]}
12... gxf6 {[%clk 0:03:35]} 13. Bc5 {[%clk 0:03:52]} 13... Rb8 {[%clk
0:03:25.1]} 14. Bb5 {[%clk 0:03:47.7]} 14... b6 {[%clk 0:03:23]} 15. Bd6 {[%clk
0:03:42.8]} 15... Rb7 {[%clk 0:03:17.9]} 16. Nh3 {[%clk 0:03:36.5]} 16... Kf8
{[%clk 0:03:11.4]} 17. Rhe1 {[%clk 0:03:25.8]} 17... Bxd6 {[%clk 0:02:32.4]} 18.
Rxd6 {[%clk 0:03:25.7]} 18... Ne5 {[%clk 0:02:28.9]} 19. Rxd8+ {[%clk
0:03:23.4]} 1-0

[Event "Live Chess"]
[Site "Chess.com"]
[Date "2023.05.21"]
[Round "-"]
[White "PiotrD11"]
[Black "martinsmartin63"]
[Result "1-0"]
[WhiteElo "1378"]
[BlackElo "751"]
[TimeControl "300"]
[EndTime "8:16:01 PDT"]
[Termination "PiotrD11 won by resignation"]

1. e4 {[%clk 0:04:59]} 1... e5 {[%clk 0:04:57.3]} 2. Nf3 {[%clk 0:04:57.8]} 2...
Nc6 {[%clk 0:04:53.7]} 3. Bb5 {[%clk 0:04:57.5]} 3... d6 {[%clk 0:04:51.2]} 4.
h3 {[%clk 0:04:55.7]} 4... Bd7 {[%clk 0:04:49.1]} 5. O-O {[%clk 0:04:55.2]} 5...
Be7 {[%clk 0:04:44.8]} 6. Re1 {[%clk 0:04:54.8]} 6... Nf6 {[%clk 0:04:39]} 7. c3
{[%clk 0:04:53.5]} 7... a6 {[%clk 0:04:34.4]} 8. Ba4 {[%clk 0:04:52.1]} 8... O-O
{[%clk 0:04:30.7]} 9. Bc2 {[%clk 0:04:50.1]} 9... Qc8 {[%clk 0:04:22.3]} 10. d4
{[%clk 0:04:47.9]} 10... Bxh3 {[%clk 0:04:18.5]} 11. dxe5 {[%clk 0:04:42.1]}
11... Nxe5 {[%clk 0:04:14.1]} 12. Nxe5 {[%clk 0:04:40.8]} 12... dxe5 {[%clk
0:04:09.8]} 13. g3 {[%clk 0:04:33.4]} 13... Bg4 {[%clk 0:04:03.5]} 14. Qd2
{[%clk 0:04:22.7]} 14... Rd8 {[%clk 0:03:54.6]} 15. Qe3 {[%clk 0:04:20.6]} 15...
b6 {[%clk 0:03:34.5]} 16. Nd2 {[%clk 0:04:19]} 16... Bc5 {[%clk 0:03:31.6]} 17.
Qg5 {[%clk 0:04:16.1]} 17... Bxf2+ {[%clk 0:03:03.3]} 18. Kxf2 {[%clk
0:04:13.5]} 18... Nxe4+ {[%clk 0:02:53.7]} 19. Nxe4 {[%clk 0:04:08.5]} 19...
Qf5+ {[%clk 0:02:37.4]} 20. Qxf5 {[%clk 0:04:03.9]} 20... Bxf5 {[%clk
0:02:35.1]} 21. Nf6+ {[%clk 0:03:52.5]} 21... gxf6 {[%clk 0:02:31.5]} 22. Bxf5
{[%clk 0:03:52.4]} 1-0

[Event "Live Chess"]
[Site "Chess.com"]
[Date "2023.05.21"]
[Round "-"]
[White "JoshMcK"]
[Black "Man-Del-Brot"]
[Result "1-0"]
[WhiteElo "1574"]
[BlackElo "1079"]
[TimeControl "300"]
[EndTime "8:16:07 PDT"]
[Termination "JoshMcK won by resignation"]

1. e4 {[%clk 0:04:59.3]} 1... e5 {[%clk 0:04:58]} 2. Nf3 {[%clk 0:04:58.2]} 2...
Nc6 {[%clk 0:04:57]} 3. Bb5 {[%clk 0:04:57.5]} 3... Nge7 {[%clk 0:04:54.9]} 4.
d4 {[%clk 0:04:55.2]} 4... a6 {[%clk 0:04:53]} 5. Bxc6 {[%clk 0:04:52.7]} 5...
Nxc6 {[%clk 0:04:50]} 6. d5 {[%clk 0:04:49.9]} 6... Nb8 {[%clk 0:04:44.7]} 7.
Nxe5 {[%clk 0:04:43.5]} 7... d6 {[%clk 0:04:43.6]} 8. Nf3 {[%clk 0:04:42.4]}
8... h6 {[%clk 0:04:36.2]} 9. O-O {[%clk 0:04:41]} 9... Bg4 {[%clk 0:04:33]} 10.
c4 {[%clk 0:04:35]} 10... Nd7 {[%clk 0:04:32.4]} 11. Be3 {[%clk 0:04:31.6]}
11... Ne5 {[%clk 0:04:30.7]} 12. Nbd2 {[%clk 0:04:29.4]} 12... Be7 {[%clk
0:04:13.2]} 13. Qb3 {[%clk 0:04:21.2]} 13... Bxf3 {[%clk 0:04:03.9]} 14. Nxf3
{[%clk 0:04:18.5]} 14... Nxf3+ {[%clk 0:04:02.4]} 15. gxf3 {[%clk 0:04:18.2]}
15... Bg5 {[%clk 0:04:00.4]} 16. Qxb7 {[%clk 0:04:06.2]} 16... O-O {[%clk
0:03:53.4]} 17. Bxg5 {[%clk 0:03:58]} 17... Qxg5+ {[%clk 0:03:50.5]} 18. Kh1
{[%clk 0:03:57.5]} 18... Rae8 {[%clk 0:03:19.6]} 19. Qxc7 {[%clk 0:03:53.6]}
19... Re5 {[%clk 0:03:17]} 20. Qxd6 {[%clk 0:03:47]} 20... Qf4 {[%clk
0:03:08.9]} 21. Rg1 {[%clk 0:03:37.2]} 21... Qxf3+ {[%clk 0:03:02.5]} 22. Rg2
{[%clk 0:03:36.1]} 22... Rg5 {[%clk 0:02:59.9]} 23. Rg1 {[%clk 0:03:32.8]} 23...
h5 {[%clk 0:02:38.5]} 24. Qa3 {[%clk 0:03:25.2]} 24... Qxe4 {[%clk 0:02:33.4]}
25. f3 {[%clk 0:03:12.2]} 25... Rxg2 {[%clk 0:01:52]} 26. fxe4 {[%clk
0:03:09.6]} 26... Rxg1+ {[%clk 0:01:50]} 27. Kxg1 {[%clk 0:03:07.4]} 27... Re8
{[%clk 0:01:47.1]} 28. Qxa6 {[%clk 0:03:02.3]} 28... Rxe4 {[%clk 0:01:44.8]} 29.
Qc8+ {[%clk 0:02:59.2]} 29... Kh7 {[%clk 0:01:35.3]} 30. Qf5+ {[%clk 0:02:58.1]}
1-0

[Event "Live Chess"]
[Site "Chess.com"]
[Date "2023.05.21"]
[Round "-"]
[White "LiamClery2020"]
[Black "CheckThis4"]
[Result "0-1"]
[WhiteElo "2009"]
[BlackElo "2531"]
[TimeControl "300"]
[EndTime "8:16:08 PDT"]
[Termination "CheckThis4 won by resignation"]

1. e4 {[%clk 0:04:59.5]} 1... d5 {[%clk 0:04:58.4]} 2. exd5 {[%clk 0:04:58.7]}
2... Nf6 {[%clk 0:04:57.4]} 3. d4 {[%clk 0:04:56.8]} 3... Bg4 {[%clk 0:04:55.5]}
4. Be2 {[%clk 0:04:56.2]} 4... Bxe2 {[%clk 0:04:53.2]} 5. Qxe2 {[%clk
0:04:55.4]} 5... Qxd5 {[%clk 0:04:52.7]} 6. Nf3 {[%clk 0:04:54.7]} 6... Nc6
{[%clk 0:04:51.8]} 7. Nc3 {[%clk 0:04:53.9]} 7... Qf5 {[%clk 0:04:46.8]} 8. Be3
{[%clk 0:04:47.8]} 8... e6 {[%clk 0:04:43.3]} 9. Nh4 {[%clk 0:04:42.4]} 9... Qa5
{[%clk 0:04:39.5]} 10. Nf3 {[%clk 0:04:40.3]} 10... Bb4 {[%clk 0:04:36.4]} 11.
Bd2 {[%clk 0:04:36.1]} 11... O-O-O {[%clk 0:04:34.4]} 12. O-O {[%clk 0:04:34.3]}
12... Nxd4 {[%clk 0:04:33.1]} 13. Nxd4 {[%clk 0:04:33.1]} 13... Rxd4 {[%clk
0:04:33]} 14. a3 {[%clk 0:04:33]} 14... Bd6 {[%clk 0:04:25.9]} 15. Ne4 {[%clk
0:04:22.5]} 15... Rxe4 {[%clk 0:04:11.2]} 16. Qxe4 {[%clk 0:04:19.1]} 16... Qxd2
{[%clk 0:04:10.2]} 17. Qa4 {[%clk 0:04:16.6]} 17... a6 {[%clk 0:04:06.5]} 18.
Rad1 {[%clk 0:04:13.6]} 18... Qh6 {[%clk 0:04:04.2]} 19. g3 {[%clk 0:04:11.8]}
19... Qh3 {[%clk 0:03:59.8]} 20. Rd4 {[%clk 0:04:06.1]} 20... h5 {[%clk
0:03:55.9]} 21. Rh4 {[%clk 0:04:04]} 21... Qf5 {[%clk 0:03:54.4]} 22. Qb3 {[%clk
0:03:53.5]} 22... g5 {[%clk 0:03:51.5]} 23. Rb4 {[%clk 0:03:52.4]} 23... Bxb4
{[%clk 0:03:48.8]} 0-1

[Event "Live Chess"]
[Site "Chess.com"]
[Date "2023.05.21"]
[Round "-"]
[White "BillythekidFellowes"]
[Black "JohanKjeldahl"]
[Result "1-0"]
[WhiteElo "2121"]
[BlackElo "1886"]
[TimeControl "300"]
[EndTime "8:16:18 PDT"]
[Termination "BillythekidFellowes won by resignation"]

1. e4 {[%clk 0:04:57.9]} 1... c5 {[%clk 0:04:57.8]} 2. Nf3 {[%clk 0:04:57.3]}
2... e6 {[%clk 0:04:56]} 3. d4 {[%clk 0:04:54.2]} 3... cxd4 {[%clk 0:04:54.7]}
4. Nxd4 {[%clk 0:04:54.1]} 4... Nc6 {[%clk 0:04:53.7]} 5. Nc3 {[%clk 0:04:42.8]}
5... Qc7 {[%clk 0:04:51.2]} 6. Be3 {[%clk 0:04:42]} 6... a6 {[%clk 0:04:48]} 7.
g3 {[%clk 0:04:40.6]} 7... Nf6 {[%clk 0:04:46.4]} 8. Bg2 {[%clk 0:04:39.7]} 8...
Be7 {[%clk 0:04:42.2]} 9. O-O {[%clk 0:04:32.3]} 9... O-O {[%clk 0:04:40.8]} 10.
a4 {[%clk 0:04:22]} 10... b6 {[%clk 0:04:36.3]} 11. e5 {[%clk 0:04:15.4]} 11...
Ne8 {[%clk 0:04:34]} 12. Nxc6 {[%clk 0:04:08.3]} 12... dxc6 {[%clk 0:04:32.2]}
13. a5 {[%clk 0:04:07.4]} 13... bxa5 {[%clk 0:04:17.4]} 14. Na4 {[%clk
0:03:55.6]} 14... Bb7 {[%clk 0:04:14.7]} 15. Bb6 {[%clk 0:03:52.8]} 15... Qxe5
{[%clk 0:04:09.8]} 16. Qd7 {[%clk 0:03:50.4]} 16... Nd6 {[%clk 0:03:44.2]} 17.
Qxe7 {[%clk 0:03:44.8]} 17... Rfe8 {[%clk 0:03:39.9]} 18. Qh4 {[%clk 0:03:43.1]}
18... Nf5 {[%clk 0:03:34.7]} 19. Qc4 {[%clk 0:03:39.6]} 1-0

[Event "Live Chess"]
[Site "Chess.com"]
[Date "2023.05.21"]
[Round "-"]
[White "diana21strabt"]
[Black "raminguy"]
[Result "1-0"]
[WhiteElo "1747"]
[BlackElo "1949"]
[TimeControl "300"]
[EndTime "8:16:41 PDT"]
[Termination "diana21strabt won by checkmate"]

1. e4 {[%clk 0:04:57.9]} 1... e5 {[%clk 0:04:58.9]} 2. Nf3 {[%clk 0:04:56.3]}
2... Nc6 {[%clk 0:04:58.4]} 3. d4 {[%clk 0:04:55.1]} 3... exd4 {[%clk
0:04:57.2]} 4. Bc4 {[%clk 0:04:53.3]} 4... Nf6 {[%clk 0:04:56.2]} 5. O-O {[%clk
0:04:51.7]} 5... Bc5 {[%clk 0:04:54.1]} 6. e5 {[%clk 0:04:48.2]} 6... Ne4 {[%clk
0:04:52.4]} 7. Re1 {[%clk 0:04:45.6]} 7... Nxf2 {[%clk 0:04:02.8]} 8. Kxf2
{[%clk 0:04:41.2]} 8... d3+ {[%clk 0:04:00.5]} 9. Be3 {[%clk 0:04:40.1]} 9...
dxc2 {[%clk 0:03:58.4]} 10. Qxc2 {[%clk 0:04:35.8]} 10... Bxe3+ {[%clk
0:03:56.6]} 11. Rxe3 {[%clk 0:04:34.4]} 11... O-O {[%clk 0:03:53.5]} 12. Bd3
{[%clk 0:04:29.5]} 12... g6 {[%clk 0:03:46.5]} 13. h4 {[%clk 0:04:27.1]} 13...
Kg7 {[%clk 0:03:35.5]} 14. h5 {[%clk 0:04:24.7]} 14... d6 {[%clk 0:03:34.1]} 15.
hxg6 {[%clk 0:04:21.5]} 15... fxg6 {[%clk 0:03:31.5]} 16. exd6 {[%clk 0:04:20]}
16... cxd6 {[%clk 0:03:21.7]} 17. Nd2 {[%clk 0:04:18]} 17... Bg4 {[%clk
0:03:14.4]} 18. Rh1 {[%clk 0:04:15.7]} 18... Bf5 {[%clk 0:03:03.7]} 19. Bxf5
{[%clk 0:04:10.7]} 19... Rxf5 {[%clk 0:03:03.4]} 20. Qc3+ {[%clk 0:04:05.7]}
20... Ne5 {[%clk 0:03:01.1]} 21. Ke2 {[%clk 0:03:40.3]} 21... Rc8 {[%clk
0:02:57.6]} 22. Qd4 {[%clk 0:03:38.4]} 22... Qf6 {[%clk 0:02:45.1]} 23. Nxe5
{[%clk 0:03:34.8]} 23... Rf2+ {[%clk 0:02:35]} 24. Kd1 {[%clk 0:03:31.4]} 24...
dxe5 {[%clk 0:02:11.1]} 25. Qd7+ {[%clk 0:03:26]} 25... Qf7 {[%clk 0:02:02.2]}
26. Qxc8 {[%clk 0:03:20.6]} 26... Qd5 {[%clk 0:01:57.1]} 27. Qc7+ {[%clk
0:03:15.8]} 27... Kf6 {[%clk 0:01:54.1]} 28. Rf3+ {[%clk 0:03:01.9]} 28... Rxf3
{[%clk 0:01:52.4]} 29. gxf3 {[%clk 0:03:00.6]} 29... Qxa2 {[%clk 0:01:51]} 30.
Qd8+ {[%clk 0:02:52.9]} 30... Kf5 {[%clk 0:01:43.9]} 31. Qf8+ {[%clk 0:02:49.9]}
31... Kg5 {[%clk 0:01:39.7]} 32. Ne4# {[%clk 0:02:48.6]} 1-0

[Event "Live Chess"]
[Site "Chess.com"]
[Date "2023.05.21"]
[Round "-"]
[White "chessfiction"]
[Black "KeithArkell"]
[Result "0-1"]
[WhiteElo "2292"]
[BlackElo "2463"]
[TimeControl "300"]
[EndTime "8:16:47 PDT"]
[Termination "KeithArkell won by resignation"]

1. e4 {[%clk 0:04:57.8]} 1... c6 {[%clk 0:04:58.9]} 2. d4 {[%clk 0:04:56.8]}
2... d5 {[%clk 0:04:58.1]} 3. exd5 {[%clk 0:04:55.6]} 3... cxd5 {[%clk
0:04:57.5]} 4. c4 {[%clk 0:04:55.3]} 4... Nf6 {[%clk 0:04:56.9]} 5. Nc3 {[%clk
0:04:55]} 5... g6 {[%clk 0:04:56.4]} 6. c5 {[%clk 0:04:54]} 6... Nc6 {[%clk
0:04:54.6]} 7. h3 {[%clk 0:04:52.8]} 7... Bg7 {[%clk 0:04:53.5]} 8. Nf3 {[%clk
0:04:52.1]} 8... Bf5 {[%clk 0:04:52.3]} 9. Bd3 {[%clk 0:04:51]} 9... Bxd3 {[%clk
0:04:51.1]} 10. Qxd3 {[%clk 0:04:50.9]} 10... b6 {[%clk 0:04:50.1]} 11. Qb5
{[%clk 0:04:47.8]} 11... Qd7 {[%clk 0:04:49]} 12. cxb6 {[%clk 0:04:45.5]} 12...
axb6 {[%clk 0:04:48.3]} 13. Qxb6 {[%clk 0:04:44.1]} 13... O-O {[%clk 0:04:47.2]}
14. O-O {[%clk 0:04:42.6]} 14... Rfb8 {[%clk 0:04:46.1]} 15. Qc5 {[%clk
0:04:41.6]} 15... Ne4 {[%clk 0:04:45.4]} 16. Nxe4 {[%clk 0:04:38.4]} 16... dxe4
{[%clk 0:04:44.7]} 17. Ne5 {[%clk 0:04:33.4]} 17... Qxd4 {[%clk 0:04:41.9]} 18.
Qxc6 {[%clk 0:04:29.1]} 18... Bxe5 {[%clk 0:04:38.4]} 19. Be3 {[%clk 0:04:23.7]}
19... Qxb2 {[%clk 0:04:36.1]} 20. Qxe4 {[%clk 0:04:22.6]} 20... Bf6 {[%clk
0:04:33.1]} 21. Bf4 {[%clk 0:04:12.1]} 21... Rc8 {[%clk 0:04:22.7]} 22. Rac1
{[%clk 0:04:07.7]} 22... Qxa2 {[%clk 0:04:15.9]} 23. h4 {[%clk 0:03:56.3]} 23...
h5 {[%clk 0:04:03.7]} 24. Rfd1 {[%clk 0:03:40.4]} 24... Rxc1 {[%clk 0:03:54.3]}
25. Rxc1 {[%clk 0:03:35]} 25... Kg7 {[%clk 0:03:53.1]} 26. g3 {[%clk 0:03:24.7]}
26... Ra4 {[%clk 0:03:50]} 27. Qe3 {[%clk 0:03:20]} 27... Qd5 {[%clk 0:03:43.6]}
28. Re1 {[%clk 0:03:09.5]} 28... Qf5 {[%clk 0:03:37.5]} 29. Kg2 {[%clk
0:03:07.1]} 29... Kh7 {[%clk 0:03:30.6]} 30. Bg5 {[%clk 0:03:01.9]} 30... e6
{[%clk 0:03:23.5]} 31. Bxf6 {[%clk 0:02:59.9]} 31... Qxf6 {[%clk 0:03:22.5]} 32.
Qf3 {[%clk 0:02:56.9]} 32... Qxf3+ {[%clk 0:03:21.4]} 33. Kxf3 {[%clk
0:02:56.8]} 33... Kg7 {[%clk 0:03:18.6]} 34. Rb1 {[%clk 0:02:50.5]} 34... Kf6
{[%clk 0:03:16.6]} 35. Rb3 {[%clk 0:02:48.1]} 35... Ra5 {[%clk 0:03:15.5]} 36.
Kg2 {[%clk 0:02:44.2]} 36... g5 {[%clk 0:03:14]} 37. hxg5+ {[%clk 0:02:41.1]}
37... Kxg5 {[%clk 0:03:12.7]} 38. Kf3 {[%clk 0:02:36.5]} 38... Ra4 {[%clk
0:03:11.4]} 39. Kg2 {[%clk 0:02:35.2]} 39... h4 {[%clk 0:03:10.1]} 40. gxh4+
{[%clk 0:02:33.4]} 40... Rxh4 {[%clk 0:03:08.6]} 41. Kg3 {[%clk 0:02:18.9]}
41... Rg4+ {[%clk 0:03:07.6]} 42. Kf3 {[%clk 0:02:17.5]} 42... Rf4+ {[%clk
0:03:07]} 43. Kg3 {[%clk 0:02:16.1]} 43... e5 {[%clk 0:03:05.3]} 44. Rb8 {[%clk
0:02:13.4]} 44... f6 {[%clk 0:03:04.3]} 45. Rg8+ {[%clk 0:02:11.9]} 45... Kf5
{[%clk 0:03:03.6]} 46. Rb8 {[%clk 0:02:03]} 46... Rc4 {[%clk 0:03:01.3]} 47. Rb3
{[%clk 0:01:54.9]} 47... Ke4 {[%clk 0:02:54.9]} 48. Re3+ {[%clk 0:01:51.2]}
48... Kd5 {[%clk 0:02:53.9]} 49. Rb3 {[%clk 0:01:47.6]} 49... f5 {[%clk
0:02:52.7]} 50. Rb5+ {[%clk 0:01:44]} 50... Rc5 {[%clk 0:02:51.6]} 51. Rb3
{[%clk 0:01:41]} 51... Rc8 {[%clk 0:02:38.9]} 52. Rb7 {[%clk 0:01:37.4]} 52...
Rc3+ {[%clk 0:02:30.7]} 53. Kg2 {[%clk 0:01:34.1]} 53... e4 {[%clk 0:02:26.5]}
54. Rb5+ {[%clk 0:01:32.6]} 54... Ke6 {[%clk 0:02:25.5]} 55. Rb6+ {[%clk
0:01:30.9]} 55... Ke5 {[%clk 0:02:24.3]} 56. Rb5+ {[%clk 0:01:30.2]} 56... Kf6
{[%clk 0:02:23.7]} 57. Rb6+ {[%clk 0:01:29.1]} 57... Kg5 {[%clk 0:02:23.1]} 58.
Rb5 {[%clk 0:01:28.2]} 58... Kg4 {[%clk 0:02:22.3]} 59. Rb8 {[%clk 0:01:25.9]}
59... Rc2 {[%clk 0:02:21.3]} 60. Rg8+ {[%clk 0:01:24.5]} 60... Kf4 {[%clk
0:02:20.6]} 61. Re8 {[%clk 0:01:24.4]} 61... Ra2 {[%clk 0:02:19]} 62. Re7 {[%clk
0:01:23.5]} 62... Kg5 {[%clk 0:02:17.7]} 63. Re8 {[%clk 0:01:21.3]} 63... Kf6
{[%clk 0:02:16]} 64. Rf8+ {[%clk 0:01:20.2]} 64... Kg6 {[%clk 0:02:14.5]} 65.
Re8 {[%clk 0:01:19.1]} 65... Kf7 {[%clk 0:02:13.7]} 66. Re5 {[%clk 0:01:17.6]}
66... Kf6 {[%clk 0:02:12.9]} 67. Re8 {[%clk 0:01:16.7]} 67... Ra3 {[%clk
0:02:12.1]} 68. Rf8+ {[%clk 0:01:14.8]} 68... Ke6 {[%clk 0:02:08.4]} 69. Re8+
{[%clk 0:01:13.9]} 69... Kf7 {[%clk 0:02:06.9]} 70. Re5 {[%clk 0:01:12.9]} 70...
Kf6 {[%clk 0:02:05.4]} 71. Re8 {[%clk 0:01:12]} 71... Ra6 {[%clk 0:01:58.1]} 72.
Rf8+ {[%clk 0:01:07.3]} 72... Kg5 {[%clk 0:01:56.9]} 73. Rg8+ {[%clk 0:01:02.7]}
73... Rg6 {[%clk 0:01:54.9]} 74. Re8 {[%clk 0:01:01.1]} 74... Kf6+ {[%clk
0:01:50.3]} 75. Kf1 {[%clk 0:00:59.2]} 75... Rg7 {[%clk 0:01:46.9]} 76. Rf8+
{[%clk 0:00:57.4]} 76... Rf7 {[%clk 0:01:46]} 77. Re8 {[%clk 0:00:56.7]} 77...
Re7 {[%clk 0:01:45.4]} 78. Rf8+ {[%clk 0:00:56]} 78... Kg5 {[%clk 0:01:44.7]}
79. Ke2 {[%clk 0:00:49.7]} 79... f4 {[%clk 0:01:43.7]} 80. Rg8+ {[%clk
0:00:48.4]} 80... Kf5 {[%clk 0:01:42.9]} 81. Rf8+ {[%clk 0:00:47.9]} 81... Ke5
{[%clk 0:01:42.3]} 82. Rb8 {[%clk 0:00:45.7]} 82... Rd7 {[%clk 0:01:40.3]} 83.
Rb5+ {[%clk 0:00:44.5]} 83... Rd5 {[%clk 0:01:39.4]} 84. Rb8 {[%clk 0:00:37.9]}
84... f3+ {[%clk 0:01:37.5]} 85. Ke1 {[%clk 0:00:36.2]} 85... Rc5 {[%clk
0:01:36.1]} 86. Re8+ {[%clk 0:00:34.8]} 86... Kd4 {[%clk 0:01:35.5]} 87. Rd8+
{[%clk 0:00:33.5]} 87... Rd5 {[%clk 0:01:34.7]} 88. Rxd5+ {[%clk 0:00:24.8]}
88... Kxd5 {[%clk 0:01:33.5]} 89. Kd2 {[%clk 0:00:24.4]} 89... Kd4 {[%clk
0:01:32.7]} 90. Kd1 {[%clk 0:00:22.1]} 90... Kd3 {[%clk 0:01:30.8]} 91. Ke1
{[%clk 0:00:21.1]} 91... Kc2 {[%clk 0:01:30.2]} 92. Kf1 {[%clk 0:00:20.3]} 92...
Kd2 {[%clk 0:01:29.5]} 93. Kg1 {[%clk 0:00:19.8]} 93... Ke2 {[%clk 0:01:28.9]}
94. Kh1 {[%clk 0:00:18.7]} 94... Kxf2 {[%clk 0:01:27.9]} 0-1

[Event "Live Chess"]
[Site "Chess.com"]
[Date "2023.05.21"]
[Round "-"]
[White "mattihelenius2"]
[Black "Cimon"]
[Result "0-1"]
[WhiteElo "495"]
[BlackElo "1845"]
[TimeControl "300"]
[EndTime "8:16:49 PDT"]
[Termination "Cimon won by checkmate"]

1. d4 {[%clk 0:04:57.3]} 1... d5 {[%clk 0:04:58.4]} 2. c4 {[%clk 0:04:57.2]}
2... c6 {[%clk 0:04:57.4]} 3. b3 {[%clk 0:04:51.9]} 3... Nf6 {[%clk 0:04:55.6]}
4. Nc3 {[%clk 0:04:51]} 4... a6 {[%clk 0:04:53.8]} 5. Nf3 {[%clk 0:04:50.5]}
5... Bf5 {[%clk 0:04:50.2]} 6. Bg5 {[%clk 0:04:49.1]} 6... e6 {[%clk 0:04:48.1]}
7. Bxf6 {[%clk 0:04:47.7]} 7... Qxf6 {[%clk 0:04:46]} 8. Ne5 {[%clk 0:04:45.1]}
8... Bd6 {[%clk 0:04:39]} 9. f4 {[%clk 0:04:26.2]} 9... Bb4 {[%clk 0:04:28.8]}
10. Qd2 {[%clk 0:04:13.6]} 10... O-O {[%clk 0:04:26.3]} 11. g3 {[%clk
0:04:11.8]} 11... Be4 {[%clk 0:04:19.8]} 12. Rg1 {[%clk 0:04:06.7]} 12... Rd8
{[%clk 0:04:15.5]} 13. h4 {[%clk 0:04:05.6]} 13... Nd7 {[%clk 0:04:10.3]} 14.
Rd1 {[%clk 0:03:12.5]} 14... Qe7 {[%clk 0:03:24.6]} 15. Ra1 {[%clk 0:02:56.2]}
15... f6 {[%clk 0:03:21.4]} 16. Ng4 {[%clk 0:02:48.2]} 16... e5 {[%clk
0:02:52.4]} 17. dxe5 {[%clk 0:02:41.5]} 17... fxe5 {[%clk 0:02:50.6]} 18. fxe5
{[%clk 0:02:40.4]} 18... Nxe5 {[%clk 0:02:48.8]} 19. Nxe5 {[%clk 0:02:35.6]}
19... Qxe5 {[%clk 0:02:47.4]} 20. Qg5 {[%clk 0:02:02.7]} 20... Bxc3+ {[%clk
0:02:39.4]} 21. Kd1 {[%clk 0:01:54.7]} 21... Qd4+ {[%clk 0:02:33.9]} 22. Kc1
{[%clk 0:01:46.6]} 22... Bxa1 {[%clk 0:02:30.5]} 23. Qe7 {[%clk 0:01:32.2]}
23... Qb2+ {[%clk 0:02:26.8]} 24. Kd1 {[%clk 0:01:27.9]} 24... dxc4+ {[%clk
0:02:25.5]} 25. Ke1 {[%clk 0:01:22]} 25... Qc3+ {[%clk 0:02:21.8]} 26. Kf2
{[%clk 0:01:20.4]} 26... Qd4+ {[%clk 0:02:19.2]} 27. Ke1 {[%clk 0:01:17.9]}
27... Qd2+ {[%clk 0:02:14.7]} 28. Kf2 {[%clk 0:01:15.3]} 28... Bd4# {[%clk
0:02:13]} 0-1

[Event "Live Chess"]
[Site "Chess.com"]
[Date "2023.05.21"]
[Round "-"]
[White "robotking06"]
[Black "Mugzwang"]
[Result "0-1"]
[WhiteElo "308"]
[BlackElo "1457"]
[TimeControl "300"]
[EndTime "8:16:51 PDT"]
[Termination "Mugzwang won by checkmate"]

1. e4 {[%clk 0:04:56.7]} 1... e6 {[%clk 0:04:58.2]} 2. e5 {[%clk 0:04:55.2]}
2... d5 {[%clk 0:04:55.8]} 3. exd6 {[%clk 0:04:52.4]} 3... Bxd6 {[%clk
0:04:54.3]} 4. Bb5+ {[%clk 0:04:49.3]} 4... Bd7 {[%clk 0:04:51.8]} 5. Bxd7+
{[%clk 0:04:42.6]} 5... Qxd7 {[%clk 0:04:48.4]} 6. Qg4 {[%clk 0:04:39.2]} 6...
f5 {[%clk 0:04:35.6]} 7. Qh5+ {[%clk 0:04:35.7]} 7... Qf7 {[%clk 0:04:31.1]} 8.
Qxf7+ {[%clk 0:04:34.4]} 8... Kxf7 {[%clk 0:04:30.2]} 9. Nf3 {[%clk 0:04:32.9]}
9... Nc6 {[%clk 0:04:21.5]} 10. d4 {[%clk 0:04:30.9]} 10... Nf6 {[%clk
0:04:17.1]} 11. Bg5 {[%clk 0:04:24.9]} 11... Nb4 {[%clk 0:04:15.1]} 12. a3
{[%clk 0:04:16]} 12... Nxc2+ {[%clk 0:04:13.4]} 13. Kd1 {[%clk 0:04:14]} 13...
Nxa1 {[%clk 0:04:12]} 14. Nfd2 {[%clk 0:04:04.4]} 14... h6 {[%clk 0:03:58.4]}
15. Bxf6 {[%clk 0:04:00.2]} 15... gxf6 {[%clk 0:03:55.2]} 16. Kc1 {[%clk
0:03:51.5]} 16... Bf4 {[%clk 0:03:51.6]} 17. Re1 {[%clk 0:03:48.4]} 17... Bxd2+
{[%clk 0:03:49]} 18. Kxd2 {[%clk 0:03:47.1]} 18... Nb3+ {[%clk 0:03:47.8]} 19.
Kc3 {[%clk 0:03:45.6]} 19... Na5 {[%clk 0:03:44.6]} 20. b4 {[%clk 0:03:43.8]}
20... Nc6 {[%clk 0:03:43.5]} 21. b5 {[%clk 0:03:42.5]} 21... Ne7 {[%clk
0:03:41.1]} 22. Nd2 {[%clk 0:03:32.6]} 22... Nd5+ {[%clk 0:03:39.4]} 23. Kc4
{[%clk 0:03:31.2]} 23... Rhg8 {[%clk 0:03:37.5]} 24. Kc5 {[%clk 0:03:28.6]}
24... Rxg2 {[%clk 0:03:32.3]} 25. Re3 {[%clk 0:03:17.7]} 25... Nxe3 {[%clk
0:03:30.1]} 26. Nf3 {[%clk 0:03:11.2]} 26... Rxf2 {[%clk 0:03:27.1]} 27. Ng5+
{[%clk 0:03:05]} 27... fxg5 {[%clk 0:03:24.8]} 28. Kb4 {[%clk 0:03:00.1]} 28...
Rxh2 {[%clk 0:03:23.2]} 29. Ka5 {[%clk 0:02:59.8]} 29... Nd5 {[%clk 0:03:21.6]}
30. Ka4 {[%clk 0:02:58.9]} 30... Rh3 {[%clk 0:03:20.1]} 31. Ka5 {[%clk
0:02:58.8]} 31... Rxa3# {[%clk 0:03:18.4]} 0-1